fUST/lending_fUST_20250306
["ID","MTS","AMOUNT","RATE_DAILY","PERIOD"]
[355512970,1741218646270,-368.6727781,0.00046849,120]
[355512971,1741218646279,-500.0,0.00046849,120]
[355512972,1741218646289,-500.0,0.00046849,120]
[355512973,1741218646299,-155.29,0.00046849,120]
[355512974,1741218646309,-500.0,0.00046849,120]
[355512976,1741218646318,-500.0,0.00046849,120]
[355512978,1741218646328,-500.0,0.00046849,120]
[355512980,1741218646338,-500.0,0.00046849,120]
[355512982,1741218646347,-500.0,0.00046873,10]
[355512983,1741218646357,-500.0,0.00046873,10]
[355512984,1741218646367,-169.0,0.00047,90]
[355512985,1741218646377,-153.0,0.00047039,30]
[355512986,1741218646387,-493.42,0.00047123,120]
[355512987,1741218646396,-498.36,0.00047123,120]
[355512988,1741218646407,-474.8,0.00047123,120]
[355512989,1741218646417,-359.56,0.00047123,120]
[355512990,1741218646426,-500.0,0.00047123,120]
[355512991,1741218646437,-500.0,0.00047123,120]
[355512992,1741218646446,-500.0,0.00047123,120]
[355512993,1741218646455,-500.0,0.00047123,120]
[355512994,1741218646465,-500.0,0.00047123,120]
[355512995,1741218646475,-159.84,0.00047123,120]
[355512996,1741218646485,-500.0,0.00047123,120]
[355512997,1741218646494,-500.0,0.00047123,120]
[355512998,1741218646504,-200.0,0.00047123,7]
[355512999,1741218646513,-19030.46,0.00047123,7]
[355513000,1741218646523,-500.0,0.00047123,120]
[355513002,1741218646532,-500.0,0.00047123,120]
[355513003,1741218646542,-344.86,0.00047123,120]
[355513005,1741218646551,-207.05325159,0.00047123,120]
[355513007,1741218646561,-500.0,0.00047123,30]
[355513009,1741218646571,-500.0,0.00047123,120]
[355513011,1741218646580,-151.0,0.00047123,120]
[355513013,1741218646590,-500.0,0.00047123,120]
[355513014,1741218646599,-500.0,0.00047123,120]
[355513015,1741218646609,-500.0,0.00047123,120]
[355513017,1741218646619,-500.0,0.00047123,120]
[355513018,1741218646628,-500.0,0.00047123,120]
[355513019,1741218646637,-194.18756775,0.00047123,120]
[355513020,1741218646646,-250.0,0.00047123,120]
[355513021,1741218646656,-314.49,0.00047123,120]
[355513022,1741218646665,-500.0,0.00047123,120]
[355513023,1741218646674,-561.01,0.00047123,120]
[355513024,1741218646684,-250.0,0.00047123,120]
[355513025,1741218646693,-599.0,0.00047123,120]
[355513026,1741218646702,-500.0,0.00047123,120]
[355513027,1741218646712,-336.57349518,0.00047123,120]
[355513028,1741218646722,-400.07014263,0.00047123,120]
[355513029,1741218646732,-10000.0,0.00047123,120]
[355513030,1741218646742,-10000.0,0.00047123,120]
[355513031,1741218646751,-500.0,0.00047123,120]
[355513032,1741218646760,-500.0,0.00047123,120]
[355513033,1741218646769,-302.77,0.00047123,120]
[355513034,1741218646779,-443.31,0.00047123,120]
[355513035,1741218646788,-216.602825,0.00047123,120]
[355513036,1741218646798,-500.0,0.00047123,120]
[355513037,1741218646808,-347.06,0.00047123,120]
[355513038,1741218646817,-500.0,0.00047123,120]
[355513039,1741218646827,-500.0,0.00047123,120]
[355513040,1741218646836,-338.53,0.00047123,120]
[355513041,1741218646845,-500.0,0.00047123,120]
[355513042,1741218646855,-500.0,0.00047397,120]
[355513043,1741218646864,-500.0,0.00047397,120]
[355513044,1741218646874,-573.08,0.00047397,120]
[355513045,1741218646883,-500.0,0.00047397,120]
[355513046,1741218646893,-500.0,0.00047397,120]
[355513047,1741218646903,-19030.46,0.00047397,7]
[355513048,1741218646912,-500.0,0.00047397,120]
[355513049,1741218646922,-500.0,0.00047397,120]
[355513050,1741218646931,-500.0,0.00047397,30]
[355513051,1741218646943,-332.8,0.00047397,120]
[355513052,1741218646952,-151.0,0.00047397,120]
[355513053,1741218646962,-500.0,0.00047397,120]
[355513054,1741218646972,-500.0,0.00047397,120]
[355513055,1741218646981,-500.0,0.00047397,120]
[355513056,1741218646991,-500.0,0.00047397,120]
[355513057,1741218647000,-430.54478339,0.00047397,120]
[355513058,1741218647010,-459.63,0.00047397,120]
[355513059,1741218647019,-500.0,0.00047397,120]
[355513060,1741218647029,-408.38,0.00047397,120]
[355513061,1741218647038,-500.0,0.00047397,120]
[355513062,1741218647047,-500.0,0.00047397,120]
[355513063,1741218647059,-500.0,0.00047397,120]
[355513064,1741218647070,-337.12,0.00047397,120]
[355513065,1741218647079,-500.0,0.00047397,120]
[355513066,1741218647089,-600.0,0.00047452,2]
[355513067,1741218647099,-500.0,0.00047671,120]
[355513068,1741218647108,-500.0,0.00047671,120]
[355513069,1741218647118,-500.0,0.00047671,120]
[355513070,1741218647128,-500.0,0.00047671,120]
[355513071,1741218647138,-19030.46,0.00047671,7]
[355513072,1741218647148,-500.0,0.00047671,120]
[355513073,1741218647158,-299.85,0.00047671,120]
[355513074,1741218647167,-500.0,0.00047671,30]
[355513075,1741218647177,-500.0,0.00047671,120]
[355513076,1741218647189,-500.0,0.00047671,120]
[355513077,1741218647198,-500.0,0.00047671,120]
[355513078,1741218647207,-500.0,0.00047671,120]
[355513079,1741218647217,-250.0,0.00047671,120]
[355513080,1741218647227,-250.0,0.00047671,120]
[355513081,1741218647237,-500.0,0.00047671,120]
[355513082,1741218647247,-10000.0,0.00047671,120]
[355513083,1741218647257,-10000.0,0.00047671,120]
[355513084,1741218647268,-500.0,0.00047671,120]
[355513085,1741218647278,-500.0,0.00047671,120]
[355513086,1741218647287,-500.0,0.00047671,120]
[355513087,1741218647297,-1074.17209929,0.00047933,28]
[355513088,1741218647307,-500.0,0.00047945,120]
[355513089,1741218647316,-500.0,0.00047945,120]
[355513090,1741218647326,-500.0,0.00047945,120]
[355513091,1741218647336,-19030.46,0.00047945,7]
[355513092,1741218647346,-247.04,0.00047945,120]
[355513093,1741218647355,-500.0,0.00047945,30]
[355513094,1741218647365,-500.0,0.00047945,120]
[355513095,1741218647375,-500.0,0.00047945,120]
[355513096,1741218647384,-500.0,0.00047945,120]
[355513097,1741218647393,-500.0,0.00047945,120]
[355513098,1741218647403,-500.0,0.00047945,120]
[355513099,1741218647413,-500.0,0.00047945,120]
[355513100,1741218647422,-500.0,0.00047945,120]
[355513101,1741218647432,-600.0,0.00047946,2]
[355513102,1741218647443,-1001.81,0.00048,120]
[355513103,1741218647452,-500.0,0.00048,30]
[355513104,1741218647461,-10000.0,0.00048,2]
[355513105,1741218647471,-2000.0,0.00048,30]
[355513106,1741218647481,-153.98,0.000481,45]
[355513107,1741218647492,-153.98,0.000481,45]
[355513108,1741218647501,-153.98,0.000481,45]
[355513109,1741218647511,-153.98,0.000481,45]
[355513110,1741218647520,-153.98,0.000481,45]
[355513111,1741218647530,-153.98,0.000481,45]
[355513112,1741218647539,-1016.22752271,0.00048187,120]
[355513113,1741218647549,-500.0,0.00048219,120]
[355513114,1741218647559,-500.0,0.00048219,120]
[355513115,1741218647568,-8455.23250954,0.00048219,7]
[355513116,1741218647718,-251.11,0.00047671,120]
[355513117,1741218647728,-26.48,0.00048219,7]
[355513118,1741218859615,-156.8727316,0.00023,10]
[355513128,1741219635452,187.18536275,0.00023,10]
[355513131,1741219758142,-300.0,0.00020999,2]
[355513132,1741219758169,-335.76915171,0.00021,2]
[355513170,1741219831985,-3745.91412895,0.00021,2]
[355513175,1741219832157,-924.27636892,0.00021,2]
[355513199,1741219837881,-591.3016354,0.00021,2]
[355513216,1741219840029,-440.87003063,0.00021,2]
[355513223,1741219840089,-2999.956986,0.00021,2]
[355513524,1741219843187,-1240.91169839,0.00021,2]
[355513526,1741219843197,-300.0,0.00022841,2]
[355513528,1741219843206,-59.53549149,0.000329,6]
[355513636,1741219845931,-962.30234036,0.000329,6]
[355513637,1741219845944,-186.976658,0.0003589,2]
[355513638,1741219845954,-239.62170176,0.00037234,2]
[355513643,1741220301516,-150.0,0.000308,2]
[355513644,1741220301537,-5505.90618809,0.00037234,7]
[355513645,1741220301559,-2949.21720454,0.00037234,2]
[355513646,1741220337897,-160.0,0.00038106,2]
[355513647,1741220337919,-203.27260072,0.000388,7]
[355513648,1741220337942,-994.53953594,0.000389,8]
[355513649,1741220348873,-203.27260072,0.00039046,7]
[355513650,1741220348895,-203.27260072,0.00039292,8]
[355513651,1741220348917,-372.760907,0.00039392,2]
[355513652,1741220348938,-500.0,0.00039791,2]
[355513661,1741220836511,207.11053828,0.00023,10]
[355513665,1741220919802,-280.27847462,0.00018,2]
[355513668,1741220971082,-2942.6989983,0.00018,2]
[355513669,1741220977789,-31722.13,0.00018,2]
[355513675,1741220999408,771.8,0.00010959,2]
[355513676,1741221010844,-157.68,0.0001799,2]
[355513677,1741221010872,-258.587,0.00017999,2]
[355513699,1741221032062,-41.413,0.00017999,2]
[355513700,1741221032072,-564.037,0.00018,2]
[355513701,1741221032084,-1295.57186333,0.00018,2]
[355513702,1741221032118,-37818.61369758,0.00018,2]
[355513703,1741221032130,-79787.63931319,0.00018,2]
[355513704,1741221032140,-420.0,0.00019639,2]
[355513705,1741221032149,-360.0,0.00021428,2]
[355513706,1741221032158,-178.6841678,0.00030459,2]
[355513707,1741221032167,-48742.74377803,0.00032872,2]
[355513708,1741221032179,-106379.39593347,0.00032872,2]
[355513717,1741221037942,-4259.98286914,0.00032872,2]
[355513722,1741221040134,-9079.85040936,0.00032872,2]
[355513723,1741221040146,-500.0,0.00032873,5]
[355513724,1741221040155,-500.0,0.00032873,5]
[355513725,1741221040166,-268.13010521,0.00032873,5]
[355513726,1741221040175,-617.47092637,0.00032873,5]
[355513727,1741221040195,-64817.9423063,0.00032876,3]
[355513728,1741221040207,-155.41,0.000329,30]
[355513729,1741221040221,-2000.0,0.0003385,15]
[355513730,1741221040231,-177.627825,0.0003589,2]
[355513731,1741221040241,-609.73651365,0.000379,108]
[355513732,1741221040251,-1977.79611191,0.00038,15]
[355513733,1741221040311,-0.0022186,0.00038,15]
[355513734,1741221040323,-22.20166949,0.00038,15]
[355513735,1741221040333,-2653.09675791,0.000381,3]
[355513755,1741221043076,-304.90610118,0.000381,3]
[355513756,1741221043088,-12440.00000022,0.000381,3]
[355513764,1741221046325,-311.14859491,0.000381,3]
[355513766,1741221135916,500.0,0.00023,10]
[355513767,1741221136298,500.0,0.00023,10]
[355513768,1741221136667,500.0,0.00023,10]
[355513769,1741221137025,500.0,0.00023,10]
[355513770,1741221137481,500.0,0.00023,10]
[355513771,1741221137838,500.0,0.00023,10]
[355513772,1741221138197,500.0,0.00023,10]
[355513773,1741221138556,500.0,0.00023,10]
[355513774,1741221138910,500.0,0.00023,10]
[355513775,1741221139279,500.0,0.00023,10]
[355513776,1741221140928,500.0,0.00023,10]
[355513777,1741221143067,500.0,0.00023,10]
[355513778,1741221148603,208.97051168,0.00023,10]
[355513779,1741221149710,500.0,0.00023,10]
[355513780,1741221150144,500.0,0.00023,10]
[355513781,1741221150500,500.0,0.00023,10]
[355513782,1741221150884,500.0,0.00023,10]
[355513783,1741221151375,500.0,0.00023,10]
[355513784,1741221151758,500.0,0.00023,10]
[355513785,1741221152137,500.0,0.00023,10]
[355513786,1741221152493,500.0,0.00023,10]
[355513787,1741221152850,500.0,0.00023,10]
[355513788,1741221153445,500.0,0.00023,10]
[355513789,1741221153903,500.0,0.00023,10]
[355513790,1741221154292,500.0,0.00023,10]
[355513791,1741221154758,500.0,0.00023,10]
[355513792,1741221155157,500.0,0.00023,10]
[355513798,1741221444432,500.0,0.00023,10]
[355513799,1741221444807,500.0,0.00023,10]
[355513801,1741221790343,908.81950761,0.00023,10]
[355513802,1741221992098,-255.93052159,0.00019022,2]
[355513805,1741222079013,215.5,0.000252,14]
[355513806,1741222168592,784.99203407,0.00025,3]
[355513840,1741222232358,-244.06947841,0.00019022,2]
[355513842,1741222232368,-500.0,0.00019022,2]
[355513844,1741222232378,-202.56932154,0.00019022,2]
[355513846,1741222232390,-297.43067846,0.00019022,2]
[355513848,1741222232400,-500.0,0.00019022,2]
[355513850,1741222232410,-500.0,0.00019022,2]
[355513851,1741222232419,-500.0,0.00019022,2]
[355513853,1741222232430,-500.0,0.00019022,2]
[355513855,1741222232438,-500.0,0.00019022,2]
[355513856,1741222232448,-500.0,0.00019022,2]
[355513857,1741222232457,-600.05606613,0.00019022,2]
[355513858,1741222232467,-614.25124596,0.00019022,2]
[355513860,1741222232476,-500.0,0.00019022,2]
[355513861,1741222232486,-500.0,0.00019022,2]
[355513863,1741222232495,-500.0,0.00019022,2]
[355513865,1741222232505,-500.0,0.00019022,2]
[355513866,1741222232514,-500.0,0.00019022,2]
[355513867,1741222232523,-500.0,0.00019022,2]
[355513868,1741222232532,-500.0,0.00019022,2]
[355513869,1741222232542,-500.0,0.00019022,2]
[355513870,1741222232551,-500.0,0.00019022,2]
[355513871,1741222232561,-500.0,0.00019022,2]
[355513872,1741222232570,-500.0,0.00019022,2]
[355513873,1741222232580,-500.0,0.00019022,2]
[355513874,1741222232589,-726.9701697,0.00019022,2]
[355513875,1741222232597,-521.09555058,0.00019022,2]
[355513876,1741222232607,-689.39657305,0.000209,2]
[355513877,1741222232615,-689.39657305,0.000259,2]
[355513878,1741222232624,-961.38821823,0.000259,4]
[355513879,1741222232634,-689.39657305,0.000309,2]
[355513880,1741222232643,-150.0,0.00033,120]
[355513881,1741222232651,-416.2669453,0.00033367,2]
[355513882,1741222232660,-186.380454,0.00033434,2]
[355513883,1741222232670,-178.143921,0.00033799,2]
[355513884,1741222232678,-1000.000001,0.00034,5]
[355513885,1741222232686,-160.0,0.00034183,3]
[355513886,1741222232695,-200.0,0.00035,7]
[355513887,1741222232704,-454.58666653,0.000362,98]
[355513888,1741222232717,-33.20254439,0.000362,98]
[355513889,1741222232726,-420.9832076,0.000362,98]
[355513937,1741222243255,-28.43672462,0.000362,98]
[355513938,1741222243275,-38.36927867,0.000362,98]
[355513939,1741222243284,-160.0,0.00036346,4]
[355513940,1741222243294,-170.15225563,0.00036346,5]
[355513941,1741222243303,-56.13100218,0.000381,3]
[355513942,1741222243315,-2192.33602455,0.000381,3]
[355513955,1741223110344,0.4,0.00020548,30]
[355513956,1741223110375,999.6,0.00020548,30]
[355513957,1741223151643,1300.0,0.00023288,30]
[355513958,1741223156849,500.0,0.00016022,2]
[355513960,1741223379640,150.88,0.0002,10]
[355514004,1741223432460,-168.0,0.00023,2]
[355514005,1741223432471,-168.0,0.00024164,2]
[355514006,1741223432480,-168.0,0.00030447,2]
[355514007,1741223432490,-168.746433,0.0003589,2]
[355514008,1741223432499,-186.380454,0.00036811,2]
[355514009,1741223432509,-2506.481634,0.000381,3]
[355514242,1741223443532,-2449.24720721,0.000381,3]
[355514243,1741223443543,-500.0,0.000381,3]
[355514244,1741223443555,-413.114,0.000381,3]
[355514245,1741223443566,-4122.03692459,0.000381,3]
[355514246,1741223443576,-219.98665873,0.000389,120]
[355514247,1741223443585,-929.34194426,0.000389,8]
[355514248,1741223443594,-178.9251259,0.00038995,4]
[355514249,1741223443604,-293.65491689,0.00039,5]
[355514250,1741223443613,-2000.0,0.00039,15]
[355514251,1741223443622,-78.81822145,0.00039,15]
[355514275,1741223446312,-272.19120742,0.00039,15]
[355514276,1741223446324,-1648.99057113,0.00039,15]
[355514277,1741223446335,-2000.0,0.00039,15]
[355514278,1741223446345,-2000.0,0.00039,15]
[355514279,1741223446354,-2000.0,0.00039,15]
[355514280,1741223446363,-2000.0,0.00039,15]
[355514281,1741223446373,-2000.0,0.00039,15]
[355514282,1741223446382,-1116.661964,0.000392,31]
[355514283,1741223446391,-475.26519051,0.00039239,2]
[355514284,1741223446400,-805.62907452,0.0003969,2]
[355514285,1741223446409,-1000.0,0.000397,31]
[355514286,1741223446419,-568.46953759,0.00039773,5]
[355514287,1741223446427,-306.03888274,0.00039773,5]
[355514288,1741223446437,-500.0,0.00039773,5]
[355514289,1741223446447,-500.0,0.00039773,5]
[355514290,1741223446456,-200.0,0.00039776,2]
[355514291,1741223446466,-216.0,0.00039776,2]
[355514292,1741223446476,-233.28,0.00039776,2]
[355514293,1741223446485,-251.9424,0.00039776,2]
[355514294,1741223446495,-272.097792,0.00039776,2]
[355514295,1741223446504,-293.86561536,0.00039776,2]
[355514296,1741223446513,-317.37486459,0.00039776,2]
[355514297,1741223446522,-342.76485376,0.00039776,2]
[355514298,1741223446532,-370.18604206,0.00039776,2]
[355514299,1741223446542,-399.99999998,0.00039776,2]
[355514300,1741223446551,-766.37,0.0003979,3]
[355514301,1741223446560,-766.35,0.0003979,3]
[355514302,1741223446569,-4789.18781024,0.0003979,3]
[355514303,1741223446581,-168.39,0.0003979,2]
[355514304,1741223446590,-168.39,0.0003979,2]
[355514305,1741223446599,-168.39,0.0003979,2]
[355514306,1741223446608,-318.66250715,0.00039798,2]
[355514307,1741223446617,-150.0,0.00039799,2]
[355514308,1741223446627,-500.0,0.00039799,31]
[355514309,1741223446636,-500.0,0.00039799,31]
[355514310,1741223446645,-500.0,0.00039799,2]
[355514311,1741223446655,-500.0,0.00039799,31]
[355514312,1741223446664,-500.0,0.00039799,2]
[355514313,1741223446673,-500.0,0.00039799,2]
[355514314,1741223446683,-337.01445475,0.00039799,31]
[355514315,1741223446693,-500.0,0.00039799,2]
[355514316,1741223446703,-500.0,0.00039799,2]
[355514317,1741223446712,-500.0,0.00039799,2]
[355514318,1741223446722,-500.0,0.00039799,2]
[355514319,1741223446731,-500.0,0.00039799,2]
[355514320,1741223446741,-497.14201071,0.00039799,2]
[355514321,1741223446751,-500.0,0.00039799,2]
[355514322,1741223446761,-500.0,0.00039799,2]
[355514323,1741223446771,-500.0,0.00039799,2]
[355514324,1741223446784,-500.0,0.00039799,2]
[355514325,1741223446794,-500.0,0.00039799,2]
[355514326,1741223446803,-1012.38,0.000398,60]
[355514327,1741223446812,-222000.0,0.000398,2]
[355514328,1741223446823,-219.98665873,0.000398,120]
[355514329,1741223446834,-161.67,0.000399,30]
[355514330,1741223446843,-155.42,0.000399,30]
[355514331,1741223446854,-3591.89085768,0.0003999,3]
[355514332,1741223446865,-583.1584445,0.00039999,31]
[355514333,1741223446875,-485.17874172,0.00039999,31]
[355514334,1741223446885,-113338.05806272,0.0004,30]
[355514335,1741223446894,-300.0,0.0004,7]
[355514336,1741223446903,-168.746433,0.00041211,2]
[355514337,1741223446912,-351.0,0.00041748,14]
[355514338,1741223446922,-351.0,0.00041748,14]
[355514339,1741223446931,-463.0,0.00041748,14]
[355514340,1741223446940,-351.0,0.00041748,14]
[355514341,1741223446949,-347.0,0.00041748,14]
[355514342,1741223446959,-500.0,0.000418,10]
[355514343,1741223446968,-500.50973305,0.000418,7]
[355514344,1741223446977,-500.0,0.000418,10]
[355514345,1741223446987,-500.0,0.000418,10]
[355514346,1741223446996,-508.14761732,0.000418,10]
[355514347,1741223447005,-500.0,0.000418,10]
[355514348,1741223447015,-500.0,0.000418,10]
[355514349,1741223447024,-500.0,0.000418,10]
[355514350,1741223447035,-500.0,0.000418,10]
[355514351,1741223447046,-153.86,0.000436,36]
[355514352,1741223447056,-153.86,0.000436,36]
[355514353,1741223447066,-409.728723,0.00044,120]
[355514354,1741223447076,-356.1632692,0.000449,30]
[355514355,1741223447086,-356.1632692,0.000449,30]
[355514356,1741223447095,-354.9944322,0.000449,30]
[355514357,1741223447105,-15625.0,0.00044986,2]
[355514358,1741223447114,-2394.59390512,0.0004499,3]
[355514359,1741223447124,-399.0,0.00045,120]
[355514360,1741223447133,-9860.53,0.00045,90]
[355514361,1741223447143,-108944.74256634,0.00045,5]
[355514362,1741223447152,-251.54133871,0.00045,10]
[355514363,1741223447162,-249.653674,0.00045,120]
[355514364,1741223447171,-249.653674,0.00045,120]
[355514365,1741223447181,-151.0,0.00045,120]
[355514366,1741223447190,-160.0,0.00045053,2]
[355514367,1741223447200,-153.86,0.000451,39]
[355514368,1741223447209,-153.86,0.000451,39]
[355514369,1741223447219,-153.86,0.000451,39]
[355514370,1741223447228,-153.86,0.000451,39]
[355514371,1741223447238,-1000.0,0.00045252,10]
[355514372,1741223447247,-153.0,0.00045351,30]
[355514373,1741223447258,-461.1316622,0.00045351,30]
[355514374,1741223447268,-2043.08,0.00046,60]
[355514375,1741223447277,-151.0,0.00046,120]
[355514376,1741223447287,-1577.39638445,0.0004628,60]
[355514377,1741223447296,-168.746433,0.00046532,2]
[355514378,1741223447305,-1197.29695256,0.00046565,4]
[355514379,1741223447315,-500.0,0.00046575,120]
[355514380,1741223447324,-300.85564604,0.00046575,120]
[355514381,1741223447334,-500.0,0.00046575,120]
[355514382,1741223447343,-500.0,0.00046575,120]
[355514383,1741223447353,-500.0,0.00046575,120]
[355514384,1741223447362,-500.0,0.00046575,120]
[355514385,1741223447371,-500.0,0.00046575,120]
[355514386,1741223447380,-501.38460616,0.00046575,120]
[355514387,1741223447389,-500.0,0.00046575,120]
[355514388,1741223447398,-500.0,0.00046575,120]
[355514389,1741223447408,-500.0,0.00046575,120]
[355514390,1741223447417,-237.97507744,0.00046575,120]
[355514391,1741223447427,-500.0,0.00046575,120]
[355514392,1741223447437,-500.0,0.00046575,120]
[355514393,1741223447446,-500.0,0.00046575,120]
[355514394,1741223447456,-500.0,0.00046575,120]
[355514395,1741223447465,-500.55837133,0.00046575,120]
[355514396,1741223447475,-500.0,0.00046575,120]
[355514397,1741223447484,-500.0,0.00046575,120]
[355514398,1741223447494,-500.00939958,0.00046575,120]
[355514399,1741223447503,-500.0,0.00046575,120]
[355514400,1741223447513,-500.0,0.00046575,120]
[355514401,1741223447522,-444.96371685,0.00046575,120]
[355514402,1741223447531,-500.0,0.00046575,120]
[355514403,1741223447541,-500.0,0.00046575,120]
[355514404,1741223447551,-579.3723077,0.00046575,120]
[355514405,1741223447560,-500.0,0.00046575,120]
[355514406,1741223447570,-249.653674,0.00046575,120]
[355514407,1741223447580,-249.653674,0.00046575,120]
[355514408,1741223447589,-249.653674,0.00046575,120]
[355514409,1741223447599,-249.653674,0.00046575,120]
[355514410,1741223447610,-200.0,0.00046575,7]
[355514411,1741223447619,-500.0,0.00046575,120]
[355514412,1741223447629,-500.0,0.00046575,120]
[355514413,1741223447638,-463.20916064,0.00046575,120]
[355514414,1741223447647,-500.0,0.00046575,120]
[355514415,1741223447657,-500.0,0.00046575,120]
[355514416,1741223447666,-14415.11,0.00046575,7]
[355514417,1741223447676,-500.0,0.00046575,30]
[355514418,1741223447685,-501.82,0.00046575,120]
[355514419,1741223447694,-304.90610118,0.00046575,120]
[355514420,1741223447706,-197.338103,0.00046575,120]
[355514421,1741223447715,-500.0,0.00046575,120]
[355514422,1741223447724,-500.0,0.00046575,120]
[355514423,1741223447733,-598.56,0.00046575,120]
[355514424,1741223447743,-500.0,0.00046575,120]
[355514425,1741223447752,-500.0,0.00046575,120]
[355514426,1741223447762,-459.21838357,0.00046575,120]
[355514427,1741223447771,-500.0,0.00046575,120]
[355514428,1741223447785,-500.0,0.00046575,7]
[355514429,1741223447795,-500.0,0.00046575,120]
[355514430,1741223447805,-500.0,0.00046575,120]
[355514431,1741223447814,-500.0,0.00046575,120]
[355514432,1741223447824,-579.79,0.00046575,120]
[355514433,1741223447835,-500.0,0.00046575,120]
[355514434,1741223447846,-500.14370001,0.00046575,120]
[355514435,1741223447857,-500.0,0.00046575,120]
[355514436,1741223447867,-161.67,0.000466,30]
[355514437,1741223447876,-153.86,0.000466,42]
[355514438,1741223447886,-153.86,0.000466,42]
[355514439,1741223447895,-153.86,0.000466,42]
[355514440,1741223447904,-153.86,0.000466,42]
[355514441,1741223447913,-153.0,0.00046834,30]
[355514442,1741223447922,-153.0,0.00046834,30]
[355514443,1741223447931,-153.0,0.00046834,30]
[355514444,1741223447940,-153.0,0.00046834,30]
[355514445,1741223447951,-1197.29695256,0.00046839,4]
[355514446,1741223447960,-500.0,0.00046849,120]
[355514447,1741223447969,-500.0,0.00046849,120]
[355514448,1741223447979,-500.0,0.00046849,120]
[355514449,1741223447989,-500.0,0.00046849,120]
[355514450,1741223447998,-500.0,0.00046849,120]
[355514451,1741223448008,-633.93161642,0.00046849,120]
[355514452,1741223448019,-249.653674,0.00046849,120]
[355514453,1741223448029,-249.653674,0.00046849,120]
[355514454,1741223448039,-500.0,0.00046849,120]
[355514455,1741223448050,-500.0,0.00046849,120]
[355514456,1741223448060,-500.0,0.00046849,120]
[355514457,1741223448069,-14415.11,0.00046849,7]
[355514458,1741223448081,-500.0,0.00046849,30]
[355514459,1741223448091,-501.82,0.00046849,120]
[355514460,1741223448101,-500.0,0.00046849,120]
[355514461,1741223448110,-500.0,0.00046849,120]
[355514462,1741223448120,-500.0,0.00046849,120]
[355514463,1741223448131,-500.0,0.00046849,120]
[355514464,1741223448141,-590.48,0.00046849,120]
[355514465,1741223448151,-500.0,0.00046849,120]
[355514466,1741223448160,-500.0,0.00046849,120]
[355514467,1741223448175,-579.79,0.00046849,120]
[355514468,1741223448185,-500.0,0.00046849,120]
[355514469,1741223448195,-500.0,0.00046849,120]
[355514470,1741223448205,-153.0,0.00046955,30]
[355514471,1741223448215,-306.0,0.00046955,30]
[355514472,1741223448224,-153.0,0.00046955,30]
[355514473,1741223448234,-153.0,0.00046955,30]
[355514474,1741223448244,-213.3345834,0.00046955,30]
[355514475,1741223448254,-153.0,0.00046955,30]
[355514476,1741223448266,-309.862757,0.00046955,30]
[355514477,1741223448276,-153.0,0.00046955,30]